Cogmind - Beta 10.2 *** ADVENTURER MODE // 2021.09.26 @ 17:26:51 Player: juauke Result: Destroyed by G-47 Trooper with Particle Gun Performance ------------- Evolutions (2) 1000 Regions Visited (3) 600 Robots Destroyed (42) 210 Value Destroyed (1159) 1159 Prototype IDs (1) 20 Alien Tech Used (0) 0 Bonus (0) 0 TOTAL SCORE: 2989 Bonus ------- None Cogmind --------- Core Integrity 0/550 Matter 267/300 Energy 81/100 System Corruption 1% Temperature Cool (18) Movement Core (50) Location -8/Materials Parts ------- > --- POWER (1) -------- (None) > --- PROPULSION (2) --- (None) > --- UTILITY (5) ------ Advanced Targeting Computer > --- WEAPON (3) ------- (None) > --- INVENTORY (4) ---- Weight Redist. System Advanced Terrain Scanner Hacking Suite Datajack Peak State ------------ > --- POWER ------------ Improved Ion Engine > --- PROPULSION ------- Aluminum Leg Aluminum Leg > --- UTILITY ---------- Cooling System Shield Generator Shield Generator > --- WEAPON ----------- Improved EM Shotgun Spread Laser Spread Laser > --- INVENTORY -------- Grenade Launcher Datajack [Rating: 17] Favorites ----------- Power Improved Ion Engine Engine Improved Ion Engine Power Core Light Nuclear Core Propulsion Aluminum Leg Leg Aluminum Leg Hover Unit Hover Unit Utility Shield Generator Device Shield Generator Storage Medium Battery Processor Signal Interpreter Protection Light Armor Plating Weapon Beam Rifle Energy Gun Beam Rifle Ballistic Gun Assault Rifle Special Melee Weapon Datajack Build | -11 -10 -9 -8 ------- Run | Scr Mat Mat Mat Slots Evolved 4 | . . 2 2 Power . | . . . . Propulsion . | . . . . Utility 3 | . . 1 2 Weapon 1 | . . 1 . Parts Attached 47 | 5 16 17 9 Power 6 | 1 3 1 1 Engine 5 | 1 2 1 1 Core 1 | . 1 . . Reactor . | . . . . Propulsion 8 | 2 3 3 . Treads . | . . . . Leg 7 | 2 2 3 . Wheel . | . . . . Hover 1 | . 1 . . Flight . | . . . . Utility 15 | . 5 6 4 Device 10 | . 3 6 1 Storage 2 | . . . 2 Processor 2 | . 1 . 1 Hackware . | . . . . Protection 1 | . 1 . . Artifact . | . . . . Weapon 18 | 2 5 7 4 Energy Gun 13 | . 2 7 4 Energy Cannon . | . . . . Ballistic Gun 4 | 2 2 . . Ballistic Cannon . | . . . . Launcher . | . . . . Special Weapon . | . . . . Impact Weapon . | . . . . Slashing Weapon . | . . . . Piercing Weapon . | . . . . Special Melee Weapon 1 | . 1 . . Unidentified Prototypes 1 | . . 1 . Parts Lost 17 | . 1 1 15 Power 1 | . . . 1 Propulsion 3 | . . 1 2 Utility 6 | . 1 . 5 Weapon 7 | . . . 7 Highest Loss Streak 7 | . 1 1 7 Average Slot Usage (%) 91 | . 94 98 54 Engine 10 | . 10 11 5 Core 1 | . 2 . . Leg 22 | . 27 21 12 Device 23 | . 11 32 18 Processor 2 | . 6 . 2 Protection 1 | . 4 . . Energy Gun 19 | . 1 32 15 Ballistic Gun 9 | . 25 . . Naked Turns . | . . . . Heaviest Build 22 | 6 15 22 22 Greatest Support 20 | 20 20 20 20 Greatest Overweight (x) 3 | . 3 2 3 Average Overweight (x) . | . . . . Largest Inventory Capacity 4 | 4 4 4 4 Average Capacity 4 | 4 4 4 4 Most Carried 4 | 2 4 4 4 Average Carried 3 | . 3 3 3 Final Capacity 4 | 4 4 4 4 Final Carried 4 | 1 4 4 4 Class Distribution -------------------- 55% | Tank 29% | Mutant 13% | Scavenger-Mutant Dominant Class ---------------- Mutant | -10/Materials Tank | -9/Materials Mutant | -8/Materials Resources | -11 -10 -9 -8 ----------- Run | Scr Mat Mat Mat Matter Collected 832 | 262 289 271 10 Remotely . | . . . . Salvage Created 1425 | 45 369 725 286 Parts 102 | . 27 58 17 Haulers Intercepted . | . . . . Recyclers Shooed . | . . . . Parts Field Recycled . | . . . . Retrieved Matter . | . . . . Parts Self-Destructed . | . . . . Prevented . | . . . . Kills | -11 -10 -9 -8 ------- Run | Scr Mat Mat Mat Combat Hostiles Destroyed 29 | 1 9 15 4 Guns 28 | 1 9 15 3 Classes Destroyed 9 | 1 2 4 2 Worker 2 | . . 2 . Builder 3 | . . 1 2 Operator 1 | . . 1 . Watcher 7 | . 2 4 1 Swarmer 4 | . 3 1 . Grunt 17 | 1 6 10 . Brawler 1 | . . . 1 Sentry 6 | . . 4 2 Hunter 1 | . . . 1 Best Kill Streak 5 | 1 3 4 5 Combat Bots Only 3 | 1 3 3 2 Max Kills in Single Turn 2 | 1 2 2 1 Gunslinging 1 | . 1 . . Exploded . | . . . . Melee . | . . . . Uniques/NPCs Destroyed . | . . . . Combat | -11 -10 -9 -8 -------- Run | Scr Mat Mat Mat Damage Taken 1982 | 25 428 334 1195 Core 668 | . 80 35 553 Absorbed by Shields 169 | . . 128 41 Core Remaining (%) 86 | 100 68 91 . Volleys Fired 122 | 3 47 50 22 Largest 3 | 2 2 3 3 Hottest 175 | 40 40 175 168 Shots Fired 272 | 6 81 128 57 Gun 272 | 6 81 128 57 Cannon . | . . . . Launcher . | . . . . Special . | . . . . Kinetic 87 | 6 81 . . Thermal 169 | . . 115 54 Explosive . | . . . . Electromagnetic 16 | . . 13 3 Robot Hit Streak 20 | 3 14 10 20 Robot Miss Streak 4 | 1 2 4 2 Penetration Max . | . . . . Secondary Targets 4 | . 2 1 1 Max Gunslinging Chain 1 | . 1 1 1 Shots Hit Robots 185 | 4 57 77 47 Core Hits 88 | 2 19 55 12 Critical Hits . | . . . . Critical Kills . | . . . . Critical Parts Destroyed . | . . . . Melee Attacks 2 | . 2 . . Impact . | . . . . Slashing . | . . . . Piercing . | . . . . Sneak Attacks . | . . . . Combat Hostiles . | . . . . Follow-up Attacks . | . . . . Damage Inflicted 2552 | 41 677 1119 715 Guns 2481 | 41 677 1048 715 Cannons . | . . . . Explosions 71 | . . 71 . Melee . | . . . . Ramming . | . . . . Kinetic 718 | 41 677 . . Thermal 1652 | . . 997 655 Explosive . | . . . . Electromagnetic 182 | . . 122 60 Impact . | . . . . Slashing . | . . . . Piercing . | . . . . Highest Corruption 1 | . . 1 1 Average Corruption 1 | . . 1 1 Corruption Purged . | . . . . Effects 6 | . . 4 2 Message Errors 3 | . . 2 1 Energy Discharges 1 | . . 1 . Data Loss (minor) 1 | . . 1 . Targeting Errors 1 | . . . 1 Overload Shots . | . . . . Overflow Damage . | . . . . Projectiles . | . . . . Explosions . | . . . . Melee . | . . . . Knockbacks . | . . . . Impact . | . . . . Kinetic . | . . . . Secondary . | . . . . Self-Inflicted Damage 29 | . . 29 . Shots 1 | . . 1 . Rammed 2 | . . 1 1 Targets Rammed 2 | . . 1 1 Kicked . | . . . . Crushed . | . . . . Highest Temperature 121 | 12 2 121 81 Average Temperature 30 | 9 1 33 26 Received Heat Transfer 1271 | 18 264 176 813 Siege Activations . | . . . . Robots Corrupted . | . . . . Combat Hostiles . | . . . . Parts Fried . | . . . . Impact Corruptions . | . . . . Robots Melted 1 | . . . 1 Combat Hostiles 1 | . . . 1 Parts Melted 6 | . . 1 5 Heat Transferred 3493 | . . 1828 1665 Parts Sabotaged . | . . . . Parts Stolen . | . . . . Parts Stripped . | . . . . Power Chain Reactions 1 | . . 1 . Missiles Intercepted . | . . . . Alert | -11 -10 -9 -8 ------- Run | Scr Mat Mat Mat Peak Influence 276 | 20 146 159 276 Initial 54 | . 11 2 54 Average 71 | 4 51 66 182 Maximum Alert Level 1 | . . . 1 Low Security (%) 94 | 100 100 100 51 Level 1 5 | . . . 48 Level 2 . | . . . . Level 3 . | . . . . Level 4 . | . . . . Level 5 . | . . . . High Security . | . . . . Max Security . | . . . . Squads Dispatched 9 | . 1 5 3 Investigation 4 | . 1 3 . Extermination . | . . . . Reinforcement 5 | . . 2 3 Assault . | . . . . Garrison . | . . . . Intercept . | . . . . Construction Impeded . | . . . . Haulers Reinforced . | . . . . Stealth | -11 -10 -9 -8 --------- Run | Scr Mat Mat Mat Distress Signals 5 | . . 2 3 Communications Jammed . | . . . . Distress Signals . | . . . . Times Spotted 63 | 1 13 26 23 Peak Tracking Total 6 | 1 3 4 6 Tactical Retreats 3 | . . . 3 Traps | -11 -10 -9 -8 ------- Run | Scr Mat Mat Mat Traps Triggered 4 | . 2 2 . Indirectly . | . . . . Trap Hack Attempts . | . . . . Triggered . | . . . . Disarmed . | . . . . Reprogrammed . | . . . . Reused . | . . . . Traps Extracted . | . . . . Installed . | . . . . Triggered . | . . . . Machines | -11 -10 -9 -8 ---------- Run | Scr Mat Mat Mat Machines Disabled . | . . . . Max in Single Turn . | . . . . Machines Sabotaged . | . . . . Garrisons Compromised . | . . . . Overloaded Fab Kills . | . . . . Fab Network Shutdowns . | . . . . Hacking | -11 -10 -9 -8 --------- Run | Scr Mat Mat Mat Machines Accessed 5 | . 2 3 . Terminals 3 | . 1 2 . Fabricators . | . . . . Repair Stations 1 | . . 1 . Recycling Units 1 | . 1 . . Scanalyzers . | . . . . Garrison Access . | . . . . Total Hacks 21 | . 4 17 . Successful 17 | . 2 15 . Failed 4 | . 2 2 . Catastrophic 1 | . 1 . . Database Lockouts . | . . . . Manual 3 | . 2 1 . Terminals 14 | . 2 12 . Fabricators . | . . . . Repair Stations 5 | . . 5 . Recycling Units 2 | . 2 . . Scanalyzers . | . . . . Garrison Access . | . . . . Terminal Hacks 10 | . . 10 . Record 4 | . . 4 . Emergency Access Points 1 | . . 1 . Recycling Unit Index 1 | . . 1 . Alert Level 1 | . . 1 . Locate Traps 2 | . . 2 . Maintenance Status 1 | . . 1 . Fabricator Hacks . | . . . . Repair Station Hacks 5 | . . 5 . Scan Component 3 | . . 3 . Repair 2 | . . 2 . Recycling Unit Hacks 2 | . 2 . . Process 1 | . 1 . . Report Inventory 1 | . 1 . . Scanalyzer . | . . . . Garrison Access Hacks . | . . . . Unauthorized Hacks . | . . . . Terminals . | . . . . Fabricators . | . . . . Repair Stations . | . . . . Recycling Units . | . . . . Scanalyzers . | . . . . Garrison Access . | . . . . Data Cores Recovered . | . . . . Used . | . . . . Hacking Detections 4 | . 1 3 . Full Trace Events 4 | . 1 3 . Feedback Events . | . . . . Feedback Blocked . | . . . . Robot Schematics Acquired . | . . . . Robots Built . | . . . . Matter . | . . . . Time . | . . . . Total Robot Build Rating . | . . . . Part Schematics Acquired . | . . . . Parts Built . | . . . . Matter . | . . . . Time . | . . . . Total Part Build Rating . | . . . . Parts Repaired 2 | . . 2 . Time 64 | . . 64 . Parts Recycled . | . . . . Recycled Matter 165 | . 165 . . Retrieved Matter . | . . . . Retrieved Components . | . . . . Parts Scanalyzed . | . . . . Part Schematics Acquired . | . . . . Parts Damaged . | . . . . Bothacking | -11 -10 -9 -8 ------------ Run | Scr Mat Mat Mat Used RIF Installer . | . . . . Robots Hacked 1 | . 1 . . Non-combat . | . . . . Combat 1 | . 1 . . Robot Hacks Applied 1 | . 1 . . parse_system 1 | . 1 . . Relay Couplers Released . | . . . . Robots Rewired . | . . . . Allies Hacked . | . . . . Hacks Repelled . | . . . . Allies | -11 -10 -9 -8 -------- Run | Scr Mat Mat Mat Total Allies . | . . . . Largest Group . | . . . . Highest-Rated Group . | . . . . Highest-Rated Ally . | . . . . Total Orders . | . . . . Ally Attacks . | . . . . Total Damage . | . . . . Kills . | . . . . Allies Corrupted . | . . . . Allies Melted . | . . . . Intel | -11 -10 -9 -8 ------- Run | Scr Mat Mat Mat Robot Analysis Total . | . . . . Derelict Logs Recovered . | . . . . Drone Launches . | . . . . Drone Recoveries . | . . . . Exploration | -11 -10 -9 -8 ------------- Run | Scr Mat Mat Mat Turns Passed 3070 | 112 1057 1574 327 Spaces Moved 1871 | 94 717 889 171 Core 141 | 28 23 . 90 Treads . | . . . . Legs 1730 | 66 694 889 81 Wheels . | . . . . Hover . | . . . . Flight . | . . . . Fastest Speed 50 | 50 120 120 50 Average Speed 131 | 99 122 146 111 Slowest Speed 200 | 120 200 180 200 Overloaded Moves . | . . . . Propulsion Burnouts . | . . . . Robots Hopped . | . . . . Cave-ins Triggered . | . . . . Exploration Rate (%) 29 | 9 48 53 9 Regions Visited 3 Branch Regions . Pre-discovered Areas . | . . . . Known Exits Taken . | . . . . Unknown Exits Taken 3 | 1 1 1 . Scrap Searched . | . . . . Spaces Dug . | . . . . Terrain Destroyed 3 | . . 3 . Melee . | . . . . Projectile . | . . . . AOE 3 | . . 3 . Terrain Rammed . | . . . . Walls Destroyed . | . . . . Machines Disabled . | . . . . Actions | -11 -10 -9 -8 --------- Run | Scr Mat Mat Mat Total 2246 | 107 816 1065 258 Wait 115 | . . 63 52 Move 1868 | 93 716 888 171 Hop . | . . . . Pick Up 49 | 6 21 21 1 Fast Attach 14 | . 1 5 8 Attach 26 | 5 9 11 1 Detach 5 | . 1 4 . Swap 7 | . 6 1 . Drop 36 | . 13 21 2 Fire 122 | 3 47 50 22 Melee 2 | . 2 . . Ram 1 | . . . 1 Kick 1 | . . 1 . Crush . | . . . . Escape Stasis . | . . . . Rewire . | . . . . Trap . | . . . . Miscellaneous . | . . . . Route ------- -11/Scrapyard -10/Materials (discovered 2 exits: *Mat x2) -9/Materials (discovered 3 exits: *Mat x2 / [*Min]) -8/Materials History --------- Turn | Location | Event 2 | -11/Scrapyard | Met Revision 17 76 | -11/Scrapyard | Discovered new exit (range 8) 113 | -11/Scrapyard | Entered Materials 314 | -10/Materials | Build established: Mutant 687 | -10/Materials | Discovered new exit (range 16) 840 | -10/Materials | Discovered new exit (range 13) 908 | -10/Materials | Build established: Scavenger-Mutant 1170 | -10/Materials | Entered another Materials area 1170 | -9/Materials | Evolved 2 slots: Utility x1, Weapon x1 1487 | -9/Materials | Build established: Tank 1887 | -9/Materials | Discovered new exit (range 13) 2110 | -9/Materials | Discovered new exit (range 15) 2623 | -9/Materials | Repaired Shield Generator 2655 | -9/Materials | Repaired Shield Generator 2733 | -9/Materials | Discovered new exit (range 5) 2744 | -9/Materials | Entered another Materials area 2744 | -8/Materials | Evolved 2 slots: Utility x2 3009 | -8/Materials | Lost 7 parts (1p2n2u2w) 3054 | -8/Materials | Core integrity fell below 50% 3067 | -8/Materials | Core integrity fell below 20% 3071 | -8/Materials | Destroyed by G-47 Trooper with Particle Gun Last Messages --------------- O-16 Technician locks terminal. Slammed into O-16 Technician. Acquired EM Shotgun. K-01 Serf collects debris. Acquired EM Shotgun. K-01 Serf collects debris. K-01 Serf cleans the Terminal. EM Shotgun destroyed. K-01 Serf cleans the Terminal. EM Shotgun destroyed. Cooling System destroyed. K-01 Serf collects debris. Acquired Med. Battery. EM Shotgun destroyed. G-47 Trooper destroyed. Acquired Med. Battery. Med. Battery destroyed. Acquired Particle Gun. Particle Gun destroyed. Med. Battery destroyed. Map ----- +----------------------------------------------------+ | | | | | | | | | | | | | | | | | | | | | | | ??????????????????????????????????????????????? | | ??????????????????????????????????????????????? | | ??????????????????????????????????????????????? | | ??????????????????????????????????????????????? | | ??????????????????????????????????????????????? | | ??????????????????????????????????????????????? | | ??????????????????????????????????????????????? | | ??????????????????????????????????????????????? | | ??????????????????????????????????????????????? | | ??????????????????????????????????????????????? | | ???????????????????########???????????????##### | | ???????????????????#! #####???????????# # | | ???????????????????# !g[ # ############# # | | ???????????????????#= gg + T # | | ???????????????????# @%g # ############# / | | ???????????????????#] * ## ##???????????# # | | ???????????????????# ! ## #????????????# # | | ???????????????????######### #???????????## # | | ???????????????????????????# #???????????# | | ???????????????????????????# #???????????# | | ???????????????????????????# #???????????# T | | ???????????????????????????# #???????????# | | ???????????????????????????# #???????????# | | ???????????????????????????? ????????????###### | | ???????????????????????????? ?????????????????? | | ???????????????????????????? ?????????????????? | | ???????????????????????????? ?????????????????? | | ???????????????????????????? ?????????????????? | | ???????????????????????????? ?????????????????? | | ???????????????????????????? ?????????????????? | | ??????????????????????????????????????????????? | | ??????????????????????????????????????????????? | | ??????????????????????????????????????????????? | | ??????????????????????????????????????????????? | | ??????????????????????????????????????????????? | | ??????????????????????????????????????????????? | | ??????????????????????????????????????????????? | | ??????????????????????????????????????????????? | | ??????????????????????????????????????????????? | +----------------------------------------------------+ Best States ------------- Heat Dissipation 53 Energy Generation 14 Energy Capacity 500 Matter Stores 300 Matter Capacity 300 Sight Range 16 Terrain Scan Density 10 Armor Coverage 150 Resistance: KI 20 Resistance: TH 20 Resistance: EX 20 Resistance: EM 20 Resistance: I 20 Resistance: S 20 Resistance: P 20 Evasion (%) 50 Targeting Accuracy 8 Offensive Hacking 10 Item Schematics ----------------- None Robot Schematics ------------------ None Fabricated ------------ Nothing Alien Tech Used ----------------- None Achievements -------------- It's Just You One Hack Too Far Part-time Mechanic Risk Taker Uninvited Guest Challenges ------------ None Game ------ Seed CentriumMakeshiftWings Manual? 0 Play Time 01:05:24 Cumulative 2.5 hours Start 2021.09.26 @ 15:36:16 End 2021.09.26 @ 17:26:51 Sessions 3 Manual Loads 0 Difficulty Adventurer Special Mode None Game No. 2 Rogue 0 Adventurer 2 Explorer 0 Win Type - Total 0 Types 0/0/0/0/0/0/0/0/0 Lore% 0 Gallery% 3 Achievement% 2 Wizard Run 0 Options --------- ASCII 1 Keyboard 1 Movement Arrows Keybinds 0 Fullscreen 1 Font 12/Smallcaps Map View 83x54 Tactical HUD 0 Map Filters NONE Filters NONE Steam 1 RUN: 9655cae5-f160-454b-959a-b2627db2f623